[Event "5th Sharjah Masters 2022"]
[Site "Sharjah"]
[Date "2022.05.27"]
[Round "7.10"]
[White "Narayanan.S.L"]
[Black "Hakobyan, Aram"]
[Result "1/2-1/2"]
[ECO "E51"]
[WhiteElo "2662"]
[BlackElo "2615"]
[Annotator "TA"]
[PlyCount "76"]
[EventDate "2022.05.21"]
[EventType "swiss"]
[EventCountry "UAE"]
[SourceTitle "playchess.com"]
[Source "ChessBase"]
[SourceQuality "1"]
[TimeControl "5400+30"]

{[%evp 13,76,0,20,19,29,24,50,36,52,39,35,27,25,39,37,14,0,0,35,22,18,26,27,15,13,12,11,2,35,0,8,0,0,11,11,0,0,-14,0,0,0,-5,25,-6,0,0,0,0,0,0,0,0,-12,-19,0,-20,0,0,0,-52,-39,-37,0,0,0]} 1. d4 {[%emt 0:00:04]} d5 {[%emt 0:00:06]} 2. c4 {[%emt 0:00:06]} e6 {[%emt 0:00:03]} 3. Nf3 {[%emt 0:00:14]} Nf6 {[%emt 0:00:07]} 4. Nc3 {[%emt 0:00:07]} Bb4 {[%emt 0:00:05]} 5. e3 {[%emt 0:00:16]} O-O {[%emt 0:00:13]} 6. a3 {[%emt 0:00:04][%cal Ba2a3,Ba3a4,Ba4a5][%mdl 32]} Bxc3+ {[%emt 0:00:25]} 7. bxc3 {[%emt 0:00:06]} c6 {[%emt 0:01:00]} 8. a4 {[%emt 0:01:11] E51: Nimzo-Indian: Rubinstein: 4...0-0 5 Nf3 d5.} Qc7 {[%emt 0:00:06]} 9. a5 {[%emt 0:04:33]} Nbd7 {[%emt 0:02:21]} 10. Be2 {[%emt 0:01:06] White is slightly better.} c5 {[%emt 0:03:50] [#]} 11. cxd5 $146 {[%emt 0:14:48]} ({Predecessor:} 11. O-O dxc4 12. Qc2 Rb8 13. e4 b5 14. axb6 Rxb6 15. e5 Nd5 16. Ng5 g6 17. Ne4 cxd4 18. cxd4 {½-½ (48) Sousa,C (2130)-Wlodarczyk,R (2210) ICCF email 2011}) 11... exd5 {[%emt 0:00:13]} 12. Nd2 {[%emt 0:07:30][%cal Bf3d2,Bd2f1,Bf1g3,Bg3h1,Bh1f2][%mdl 32]} Re8 {[%emt 0:03:34]} 13. O-O {[%emt 0:00:54]} c4 {[%emt 0:01:11]} 14. Re1 {[%emt 0:22:30]} Nf8 {[%emt 0:01:24]} 15. Nf1 {[%emt 0:01:03]} Ne4 {[%emt 0:01:51][%cal Bf6e4,Be4d6,Bd6f5][%mdl 32]} 16. Bd2 {[%emt 0:00:51]} Ng6 {[%emt 0:06:06]} 17. f3 {[%emt 0:02:48]} Nd6 {[%emt 0:04:06]} 18. Qc1 {[%emt 0:07:34]} Re7 {[%emt 0:07:29]} 19. Ng3 {[%emt 0:01:01]} Nf5 {[%emt 0:07:22]} 20. Nh1 {[%emt 0:01:54]} Bd7 {[%emt 0:04:06]} 21. Nf2 {[%emt 0:02:36]} (21. Bd1 {is interesting.} Rae8 22. Bc2 Ngh4 23. Re2) 21... Nd6 {[%emt 0:01:10] Against e4} 22. Bd1 {[%emt 0:00:27]} Bc6 {[%emt 0:09:13]} 23. Bc2 {[%emt 0:00:49]} f5 {[%emt 0:00:07] Prevents e4.} 24. g3 {[%emt 0:07:52]} Rae8 {[%emt 0:00:50]} 25. Kh1 {[%emt 0:00:19]} Re6 {[%emt 0:06:37]} 26. Rg1 {[%emt 0:01:35]} Qf7 {[%emt 0:00:03]} 27. Nh3 {[%emt 0:02:56]} Nf8 {[%emt 0:02:50]} 28. Nf4 {[%emt 0:02:58] Against Qh5} (28. Ng5 {seems wilder.} Qh5 29. g4 Qxg5 30. gxf5 Qh5 31. fxe6 Qxf3+ 32. Rg2) 28... Rf6 {[%emt 0:05:23]} 29. h4 {[%emt 0:00:48]} Ne6 {[%emt 0:01:01]} 30. Nh3 {[%emt 0:06:47]} h6 {[%emt 0:05:32][%cal Bh7h6,Bh6g5,Bg5g4][%mdl 32]} 31. Kg2 {[%emt 0:00:11]} g5 {[%emt 0:04:39]} 32. hxg5 {[%emt 0:00:34]} hxg5 {[%emt 0:00:02]} 33. Rh1 {[%emt 0:02:31]} g4 {[%emt 0:05:12]} 34. Nf4 {[%emt 0:01:32]} Nxf4+ {[%emt 0:01:16]} 35. gxf4 {[%emt 0:00:05]} Rg6 {[%emt 0:00:14]} 36. fxg4 {[%emt 0:00:53]} (36. Rh4 $11) 36... Rxg4+ $15 {[%emt 0:00:09]} 37. Kf2 $1 {[%emt 0:00:04]} Qg6 {[%emt 0:00:59] [#] ( -> ...Rg2+)} 38. Qg1 {[%emt 0:01:58] Against Rg2+} Kf7 {[%emt 0:06:09] Weighted Error Value: White=0.09 (flawless) /Black=0.08 (flawless)} 1/2-1/2

[Event "5th Sharjah Masters 2022"]
[Site "Sharjah"]
[Date "2022.05.27"]
[Round "7.11"]
[White "Sethuraman, S.P."]
[Black "Moussard, Jules"]
[Result "1/2-1/2"]
[ECO "D78"]
[WhiteElo "2613"]
[BlackElo "2651"]
[Annotator "TA"]
[PlyCount "61"]
[EventDate "2022.05.21"]
[EventType "swiss"]
[EventCountry "UAE"]
[SourceTitle "playchess.com"]
[Source "ChessBase"]
[SourceQuality "1"]
[TimeControl "5400+30"]

{[%evp 18,61,14,17,19,13,16,15,20,0,0,4,25,31,18,11,33,21,30,25,18,20,11,0,0,0,27,0,0,0,56,56,56,-65,-34,-58,-16,-39,-55,-41,-24,88,85,102,150,-334]} 1. c4 {[%emt 0:00:20]} c6 {[%emt 0:01:05]} 2. Nf3 {[%emt 0:01:41]} d5 {[%emt 0:00:44]} 3. d4 {[%emt 0:01:12]} Nf6 {[%emt 0:02:51]} 4. g3 {[%emt 0:00:46]} g6 {[%emt 0:01:47]} 5. Bg2 {[%emt 0:02:09]} Bg7 {[%emt 0:00:05]} 6. O-O {[%emt 0:02:04]} O-O {[%emt 0:01:07]} 7. b3 {[%emt 0:03:20]} Bf5 {[%emt 0:01:02]} 8. Bb2 {[%emt 0:01:10]} a5 {[%emt 0:02:33]} 9. Nc3 {[%emt 0:02:36]} Ne4 {[%emt 0:02:35]} 10. e3 {[%emt 0:01:33]} Nxc3 {[%emt 0:10:32] D78: Fianchetto Grünfeld: 6 0-0 c6.} 11. Bxc3 {[%emt 0:00:10]} Be4 {[%emt 0:00:21]} 12. Bh3 {[%emt 0:06:37]} e6 {[%emt 0:01:04] [#] The position is equal.} 13. Nd2 $146 {[%emt 0:09:43]} ({Predecessor:} 13. Qe2 Bxf3 14. Qxf3 Nd7 15. Qe2 f5 16. f3 Re8 17. Rad1 a4 18. Rfe1 axb3 19. axb3 {½-½ (42) Donchenko,A (2523)-Mamedov,R (2652) Doha 2014}) 13... Bd3 {[%emt 0:02:57]} 14. Re1 {[%emt 0:00:39]} b5 {[%emt 0:03:50]} 15. cxb5 {[%emt 0:08:24]} Bxb5 {[%emt 0:16:30]} 16. a4 {[%emt 0:00:37]} Bd3 {[%emt 0:01:57]} 17. b4 {[%emt 0:02:46]} Na6 {[%emt 0:01:02]} 18. bxa5 {[%emt 0:00:07]} c5 {[%emt 0:00:21]} 19. Nb3 {[%emt 0:09:13][%csl LRc5,LRd3]} Bc4 {[%emt 0:00:25]} 20. Nd2 {[%emt 0:07:10]} Bd3 {[%emt 0:05:37]} 21. Nb3 {[%emt 0:03:33]} Bc4 {[%emt 0:11:10]} 22. Nd2 {[%emt 0:00:18]} Bd3 {[%emt 0:02:43]} 23. Nb3 {[%emt 0:00:16][%csl LRc5,LRd3]} c4 {[%emt 0:29:42]} ({Better is} 23... Bc4 $1 $11) 24. Nc1 $1 $36 {[%emt 0:36:06][%mdl 2048] White is more active.} Bf5 25. g4 {[%emt 0:00:30]} (25. Bxf5 $14 gxf5 26. Rb1) 25... Qh4 $15 26. Kg2 {[#]} Nc5 $1 27. gxf5 {[%emt 0:01:00] And now Qg4 would win.} Ne4 {[%emt 0:02:00]} 28. Na2 $1 ({Avoid the trap} 28. Qc2 $2 Ng5 29. Kh1 Nf3 $19) 28... Qxf2+ {[%emt 0:00:30]} (28... h5 $15 {keeps the upper hand.} 29. f6 Bxf6) 29. Kh1 $16 Qh4 {...Nf2+ is the strong threat.} 30. Qf3 {[%emt 0:01:30]} Ng5 {[%emt 0:01:00]} (30... gxf5 $142 31. Bg2 Nf2+ 32. Kg1 Ne4) 31. Qd1 $2 {[%emt 0:00:30][%mdl 32768] Weighted Error Value: White=0.12 (very precise) /Black=0.09 (flawless) . An unexpected result.} 1/2-1/2

[Event "5th Sharjah Masters 2022"]
[Site "Sharjah"]
[Date "2022.05.27"]
[Round "7.12"]
[White "Sargsyan, Shant"]
[Black "Sanal, Vahap"]
[Result "1-0"]
[ECO "D11"]
[WhiteElo "2641"]
[BlackElo "2575"]
[Annotator "TA"]
[PlyCount "99"]
[EventDate "2022.05.21"]
[EventType "swiss"]
[EventCountry "UAE"]
[SourceTitle "playchess.com"]
[Source "ChessBase"]
[SourceQuality "1"]
[TimeControl "5400+30"]

{[%evp 9,99,19,22,24,33,30,25,12,18,8,14,9,6,5,27,20,14,0,39,43,51,49,71,66,66,71,78,41,82,24,85,103,87,78,79,41,85,48,60,45,48,32,29,28,32,0,0,0,0,0,0,-13,41,41,59,58,57,6,71,51,97,86,99,99,95,93,117,124,125,127,174,172,281,129,129,136,137,140,187,187,189,185,183,183,320,340,395,351,441,390,382,355]} 1. d4 {[%emt 0:01:22]} d5 {[%emt 0:00:30]} 2. c4 {[%emt 0:00:43]} c6 {[%emt 0:00:16]} 3. Nf3 {[%emt 0:00:07]} Nf6 {[%emt 0:00:09]} 4. e3 {[%emt 0:00:09]} Bg4 {[%emt 0:00:23]} 5. h3 {[%emt 0:00:26]} Bh5 {[%emt 0:01:35]} 6. g4 {[%emt 0:00:14] D11: Slav Defence: 3 Nf3 sidelines and 3...Nf6 4 e3 Bg4.} Bg6 {[%emt 0:00:12]} 7. Ne5 {[%emt 0:00:26]} Nbd7 {[%emt 0:02:59]} 8. Nxg6 {[%emt 0:01:06] White has an edge.} hxg6 {[%emt 0:00:08]} 9. cxd5 {[%emt 0:00:12]} cxd5 {[%emt 0:04:20]} 10. Nc3 {[%emt 0:00:27]} e6 {[%emt 0:00:20]} 11. Bd2 {[%emt 0:00:16]} g5 {[%emt 0:07:29]} 12. Bd3 {[%emt 0:03:15] [#]} a6 $146 {[%emt 0:03:58]} ({Predecessor:} 12... Be7 13. Rc1 Rc8 14. f3 Kf8 15. Kf2 g6 16. Qa4 a6 17. Qb3 b5 18. a4 b4 {1-0 (44) Gunina,V (2525)-Girya,O (2450) Khanty-Mansiysk 2016}) 13. Kf1 {[%emt 0:03:27]} b5 {[%emt 0:07:16]} 14. Kg2 {[%emt 0:01:23]} g6 {[%emt 0:02:24]} 15. Ne2 {[%emt 0:06:17]} (15. Rc1 {looks sharper.} Bd6 16. e4 dxe4 17. Bxe4 b4 18. Bxa8 Qxa8+ 19. Qf3) 15... Nb6 {[%emt 0:06:23] Against a4} 16. f3 {[%emt 0:12:02]} (16. b3 {is interesting.} Qd6 17. f3 Be7 18. Be1) 16... Be7 {[%emt 0:04:16]} 17. b3 {[%emt 0:03:14] Inhibits Nc4.} Nfd7 {[%emt 0:02:07]} 18. Qb1 {[%emt 0:05:43][%cal Od3g6]} Rb8 {[%emt 0:10:26][%cal Ob6c4] [#]} 19. Be1 {[%emt 0:09:39]} (19. Bxg6 $1 $16 {Black must now prevent Bc2.} fxg6 20. Qxg6+ Kf8 21. Qxe6) 19... Kf8 {[%emt 0:05:48]} (19... Ba3 $11 {keeps the balance.}) 20. Bg3 $16 {[%emt 0:00:37]} Rc8 {[%emt 0:00:43]} 21. Qe1 {[%emt 0:04:38]} Kg7 {[%emt 0:02:54]} 22. Qa5 {[%emt 0:03:06]} Ra8 {[%emt 0:01:44]} 23. Rhc1 {[%emt 0:02:20]} Qf8 $1 {[%emt 0:00:33] aiming for ...Bb4.} 24. a3 {[%emt 0:02:06] Against Bb4} Bd6 {[%emt 0:35:37]} 25. Rc6 {[%emt 0:01:42]} Bxg3 {[%emt 0:00:00]} 26. Nxg3 {[%emt 0:00:10]} Rc8 {[%emt 0:00:00]} 27. Rcc1 {[%emt 0:06:18]} ({Much worse is} 27. Rxb6 Nxb6 28. Qxb6 Rc3 $15) 27... Rxc1 {[%emt 0:00:00]} 28. Rxc1 {[%emt 0:00:03]} Qd6 {[%emt 0:00:00]} 29. Ne2 {[%emt 0:02:31]} Ra8 {[%emt 0:00:00]} 30. Rh1 {[%emt 0:06:09]} Rc8 {[%emt 0:00:00]} ({Black should play} 30... e5 $11) 31. Qxa6 $14 {[%emt 0:08:57]} Ra8 {[%emt 0:00:00]} 32. Qxb5 {[%emt 0:00:02] Threatens to win with a4.} Qxa3 {[%emt 0:00:00]} 33. Rb1 {[%emt 0:01:05]} ({White should try} 33. Bb1 $14) 33... Qd6 {[%emt 0:00:00]} (33... Rc8 $11) 34. Rc1 $16 {[%emt 0:03:22]} Ra2 {[%emt 0:00:00]} (34... Qa3 $14) 35. Rc2 {[%emt 0:00:31]} Ra1 {[%emt 0:00:00]} 36. Qc6 {[%emt 0:03:06]} Qa3 {[%emt 0:00:00]} 37. Qc3 {[%emt 0:00:04]} Rb1 {[%emt 0:00:00]} 38. Nc1 {[%emt 0:00:34]} Kg8 {[%emt 0:00:00]} 39. Kf2 {[%emt 0:01:37][%cal Bg2f2,Bf2e2,Be2d2][%mdl 32]} Kg7 {[%emt 0:00:00]} (39... Qd6 $2 40. Re2 Rxc1 41. Qxc1 $18) (39... Ra1 $16 40. Kg2 Kg7) 40. Ke2 $18 {[%emt 0:01:29]} Qd6 {[%emt 0:00:00] [#]} (40... Ra1 $142 41. Kd2 Kf8 42. Qxa1 Qxa1) 41. Qc7 {[%emt 0:00:19]} (41. Kd2 $1 $18 {and the rest is easy.}) 41... Qa3 $16 {[%emt 0:00:06]} (41... Qb4 $2 42. Ra2 Rxb3 43. Nxb3 Qxb3 44. Qc2 $18) 42. Kd2 {[%emt 0:01:16] Active counter play!} ({Don't take} 42. Bb5 Ra1) 42... Ra1 {[%emt 0:00:58]} 43. Qc3 {[%emt 0:00:24]} Qa8 {[%emt 0:00:13] [#]} (43... Kf6 $16 44. Qxa1 Qxa1) 44. Qxa1 $3 $18 {[%emt 0:00:35][%mdl 512]} Qxa1 {[%emt 0:00:06]} 45. Ra2 {[%emt 0:00:02] Against Qa3} Qxa2+ {[%emt 0:00:40]} (45... Nc4+ $2 46. bxc4 Qxa2+ 47. Nxa2 $18) 46. Nxa2 {[%emt 0:00:02]} f5 {[%emt 0:00:21]} (46... Kf8 {was necessary.} 47. Nb4 Ke7 48. Nc6+ Kd6) 47. Bb5 {[%emt 0:00:51]} Nf6 {[%emt 0:00:19]} 48. Nb4 {[%emt 0:00:33]} f4 {[%emt 0:02:32]} 49. Nd3 {[%emt 0:00:32]} fxe3+ {[%emt 0:00:05]} 50. Kxe3 {[%emt 0:00:04] Weighted Error Value: White=0.15 (very precise) /Black=0.24 (precise)} 1-0

[Event "5th Sharjah Masters 2022"]
[Site "Sharjah"]
[Date "2022.05.27"]
[Round "7.13"]
[White "Aravindh, Chithambaram VR."]
[Black "Abasov, Nijat"]
[Result "1/2-1/2"]
[ECO "A14"]
[WhiteElo "2606"]
[BlackElo "2635"]
[Annotator "TA"]
[PlyCount "219"]
[EventDate "2022.05.21"]
[EventType "swiss"]
[EventCountry "UAE"]
[SourceTitle "playchess.com"]
[Source "ChessBase"]
[SourceQuality "1"]
[TimeControl "5400+30"]

{[%evp 56,219,128,132,180,25,20,35,25,25,134,134,132,125,189,180,163,0,93,0,181,181,181,181,185,68,67,53,49,35,39,45,53,50,45,26,26,26,26,26,26,26,26,8,168,42,61,8,8,8,8,8,8,8,8,8,8,8,8,8,8,8,8,8,8,8,8,8,8,8,8,8,8,8,8,8,8,8,8,8,8,8,8,0,8,8,8,8,8,8,8,8,8,0,8,8,8,8,8,8,8,8,8,8,8,8,8,8,8,8,1059,664,381,8,8,8,8,8,8,0,8,0,8,8,8,8,8,8,8,8,8,8,8,8,8,8,8,0,8,8,8,8,8,8,37,8,8,8,8,8,8,8,8,8,8,8,8,8,8,8,8,8,8,8,8,8]} 1. Nf3 {[%emt 0:00:08]} d5 {[%emt 0:01:55]} 2. g3 {[%emt 0:00:12]} Nf6 {[%emt 0:01:02]} 3. Bg2 {[%emt 0:00:11]} e6 {[%emt 0:00:33]} 4. O-O {[%emt 0:00:13]} Be7 {[%emt 0:00:44]} 5. c4 {[%emt 0:00:10]} O-O {[%emt 0:00:13]} 6. Ne5 {[%emt 0:00:10]} Nc6 {[%emt 0:02:08]} 7. Nxc6 {[%emt 0:00:18]} bxc6 {[%emt 0:00:07]} 8. d3 {[%emt 0:00:19]} e5 {[%emt 0:11:45]} 9. Nd2 {[%emt 0:00:32]} Re8 {[%emt 0:04:46]} 10. b3 {[%emt 0:09:47]} Bc5 {[%emt 0:13:39]} 11. Bb2 {[%emt 0:06:08]} Rb8 {[%emt 0:00:49]} 12. Qc2 {[%emt 0:15:35]} Qd6 {[%emt 0:02:49]} 13. cxd5 {[%emt 0:13:11]} cxd5 {[%emt 0:00:26]} 14. Rac1 {[%emt 0:00:51]} Bb6 {[%emt 0:02:58]} 15. e4 {[%emt 0:01:31]} dxe4 {[%emt 0:18:04]} 16. dxe4 {[%emt 0:00:28]} Ba6 {[%emt 0:00:07]} 17. Nc4 {[%emt 0:00:16]} Qe6 {[%emt 0:04:05]} 18. Nxe5 {[%emt 0:15:29]} Bxf1 {[%emt 0:00:16]} 19. Bxf1 {[%emt 0:00:26]} Qd6 {[%emt 0:01:20]} 20. Rd1 {[%emt 0:02:02]} Qc5 {[%emt 0:00:18]} 21. Qxc5 {[%emt 0:02:29]} Bxc5 {[%emt 0:00:11]} 22. Bc4 {[%emt 0:01:14]} Red8 {[%emt 0:03:50]} 23. Bxf7+ {[%emt 0:20:14]} Kf8 {[%emt 0:00:10]} 24. Rc1 {[%emt 0:00:06]} Nxe4 {[%emt 0:09:20]} 25. Rxc5 {[%emt 0:01:24]} Nxc5 {[%emt 0:00:05]} 26. Ba3 {[%emt 0:00:05]} Ke7 {[%emt 0:01:37]} 27. Bxc5+ {[%emt 0:00:12]} Kf6 {[%emt 0:00:05]} 28. f4 {[%emt 0:00:19]} Rd2 {[%emt 0:00:46]} 29. Bc4 {[%emt 0:03:07]} (29. Bxa7 $6 Rbd8 30. Bc4 Rxa2 $11) 29... Rbd8 {[%emt 0:00:14]} (29... Kf5 $16 {was called for.}) 30. Ng4+ $2 {[%emt 0:03:59]} (30. Bxa7 Rxa2 31. Bf2 Rdd2 $11) ({White should try} 30. a4 $1 $18) 30... Kf5 $11 {[%emt 0:00:06]} 31. Nf2 {[%emt 0:00:07]} Rxa2 {[%emt 0:01:11]} 32. Kg2 {[%emt 0:00:08]} Rc2 {[%emt 0:01:12]} (32... a5 $11) 33. Bxa7 $16 {[%emt 0:01:49]} Rc3 {[%emt 0:00:24]} 34. Bc5 {[%emt 0:00:10]} h6 {[%emt 0:03:27]} (34... c6 $16 35. Be7 Rd4) 35. Bb4 $18 {[%emt 0:00:13]} Re3 {[%emt 0:00:06]} 36. Bc5 {[%emt 0:00:03]} (36. Ba5 $18) 36... Rc3 $1 $16 {[%emt 0:00:05]} 37. Bb4 {[%emt 0:01:29]} (37. Ba3 $16) 37... Re3 $1 $18 {[%emt 0:00:05]} 38. Ba5 $1 {[%emt 0:00:05]} Rd7 {[%emt 0:00:50]} 39. Ba6 {[%emt 0:00:09]} Rd6 {[%emt 0:04:32]} 40. Bc8+ {[%emt 0:03:17]} ({White has to play} 40. g4+ $1 $18 Kg6 41. Bc4) 40... Kg6 $14 {[%emt 0:00:04]} 41. Ng4 {[%emt 0:00:25]} ({Reject} 41. Bxc7 $6 Rc6 42. f5+ Kh7 $11) 41... Rxb3 {[%emt 0:00:59]} 42. Ne5+ {[%emt 0:00:08]} Kf6 {[%emt 0:00:29]} 43. Bxc7 {[%emt 0:00:30]} Rd2+ {[%emt 0:00:06]} 44. Kh3 {[%emt 0:00:04]} Rc3 {[%emt 0:00:53]} 45. Ba5 {[%emt 0:02:29]} Rxh2+ $1 {[%emt 0:00:07]} 46. Kxh2 {[%emt 0:00:03]} Rxc8 {[%emt 0:00:09]} 47. Kg2 {[%emt 0:00:21]} g5 {[%emt 0:02:56]} 48. Ng4+ {[%emt 0:00:40]} Kg6 {[%emt 0:00:10]} 49. Ne3 {[%emt 0:00:19]} Rc5 $2 {[%emt 0:04:37]} (49... gxf4 $11 50. gxf4 Ra8) 50. Bb6 {[%emt 0:00:30]} (50. f5+ $18 Kf7 51. Bd2) 50... Rb5 $1 $14 {[%emt 0:00:06]} 51. Bd4 {[%emt 0:00:37]} (51. f5+ $14 Kf7 52. Bc7) 51... gxf4 $11 {[%emt 0:04:09]} 52. gxf4 {[%emt 0:00:05]} Rb4 {[%emt 0:00:09]} 53. Be5 {[%emt 0:00:13]} h5 {[%emt 0:00:09]} 54. Kf3 {[%emt 0:00:59]} Ra4 {[%emt 0:02:47]} 55. Bc7 {[%emt 0:00:49]} Kf6 {[%emt 0:00:29]} 56. Bd8+ {[%emt 0:00:12]} Ke6 {[%emt 0:00:08]} 57. Bh4 {[%emt 0:00:22]} Ra3 {[%emt 0:00:32]} 58. Bf2 {[%emt 0:00:25]} Ra4 {[%emt 0:01:32]} 59. Ng2 {[%emt 0:00:32]} Kf5 {[%emt 0:00:16]} 60. Nh4+ {[%emt 0:00:07]} Ke6 {[%emt 0:00:14]} 61. Be3 {[%emt 0:00:28]} Rb4 {[%emt 0:00:17]} 62. Bd2 {[%emt 0:00:27]} Ra4 {[%emt 0:00:09]} 63. Ke3 {[%emt 0:00:59]} Ra3+ {[%emt 0:02:25]} 64. Ke4 {[%emt 0:00:25]} Ra4+ {[%emt 0:00:01]} 65. Kf3 {[%emt 0:00:44]} Ra3+ {[%emt 0:00:11]} 66. Be3 {[%emt 0:00:05]} Ra4 {[%emt 0:00:02]} 67. Ng2 {[%emt 0:00:08]} Kf5 {[%emt 0:00:11]} 68. Bb6 {[%emt 0:00:30]} Ke6 {[%emt 0:00:25]} 69. Bf2 {[%emt 0:01:27]} Kf5 {[%emt 0:00:22]} 70. Be1 {[%emt 0:00:16]} Ke6 {[%emt 0:00:14]} 71. Ne3 {[%emt 0:00:13]} Kf6 {[%emt 0:01:36]} 72. Bc3+ {[%emt 0:00:36]} Ke6 {[%emt 0:00:03]} 73. Be5 {[%emt 0:00:55]} Rb4 {[%emt 0:00:22]} 74. Bc3 {[%emt 0:01:14]} Ra4 {[%emt 0:00:03]} 75. f5+ {[%emt 0:00:16]} Kf7 {[%emt 0:00:09]} 76. Be5 {[%emt 0:00:09]} Ke7 {[%emt 0:02:09]} 77. Nd5+ {[%emt 0:00:19]} Kf7 {[%emt 0:00:04]} 78. Nf6 {[%emt 0:01:02]} Ra5 {[%emt 0:02:39]} 79. Kf4 {[%emt 0:00:05]} Ra4+ {[%emt 0:00:08]} 80. Kg5 {[%emt 0:00:15]} h4 {[%emt 0:00:29]} 81. Ng4 {[%emt 0:00:23]} h3 $1 {[%emt 0:00:04]} 82. Nf2 {[%emt 0:00:22]} Ra3 $2 {[%emt 0:00:46][%mdl 8192]} (82... Ra5 $11) 83. Kg4 $1 $18 {[%emt 0:00:13]} Ra5 {[%emt 0:01:00] [#]} 84. Bg3 $2 {[%emt 0:01:58]} ({Only move:} 84. Bf4 $1 $18) 84... Ra4+ $11 {[%emt 0:00:28]} 85. Kg5 {[%emt 0:00:04]} Ra3 $1 {[%emt 0:00:20]} 86. Bd6 {[%emt 0:00:09]} Ra6 {[%emt 0:00:17]} 87. Be5 {[%emt 0:00:35]} Ra3 {[%emt 0:00:15]} 88. Ng4 {[%emt 0:00:19]} Ra6 {[%emt 0:00:21]} 89. Bc7 {[%emt 0:00:46]} Ke7 {[%emt 0:00:50]} 90. Kh4 {[%emt 0:00:21]} Ra3 {[%emt 0:00:08]} 91. Be5 {[%emt 0:00:26]} Kf7 {[%emt 0:00:44]} 92. Bd6 {[%emt 0:00:27]} Ra6 {[%emt 0:01:13]} 93. Bg3 {[%emt 0:00:30]} Ra5 {[%emt 0:00:04]} 94. Kg5 {[%emt 0:00:04]} Ra2 {[%emt 0:00:43]} 95. Nh6+ {[%emt 0:00:33]} Ke8 {[%emt 0:00:11]} 96. Ng4 {[%emt 0:00:12]} Kf7 {[%emt 0:00:04]} 97. Bd6 {[%emt 0:00:30]} Ra6 {[%emt 0:00:17]} 98. Nh6+ {[%emt 0:00:47]} Ke8 {[%emt 0:00:05]} 99. Bf4 {[%emt 0:00:40]} Ra2 {[%emt 0:02:10]} 100. f6 {[%emt 0:01:19]} (100. Ng4 $5 {[%cal Rf5f6]} Ke7 101. Bg3 $16) 100... Rg2+ {[%emt 0:00:02]} 101. Kf5 {[%emt 0:00:08]} Rf2 $1 {[%emt 0:00:04]} ({Resist} 101... h2 102. f7+ Ke7 {[#]} 103. Bd6+ $1 Kd7 104. f8=Q $16 (104. Bxh2 Rxh2 105. f8=N+ Ke8 $11)) 102. Ng4 {[%emt 0:00:18]} Rf1 {[%emt 0:00:06]} 103. Kg5 {[%emt 0:00:32]} Kf7 {[%emt 0:00:23]} 104. Bh2 {[%emt 0:00:06]} Ke6 {[%emt 0:00:27]} 105. Kg6 {[%emt 0:00:30]} Rf5 {[%emt 0:00:17]} 106. Bg3 {[%emt 0:00:32]} Rf3 {[%emt 0:00:17]} 107. Bb8 {[%emt 0:00:40]} Rf1 {[%emt 0:00:10]} 108. Kg5 {[%emt 0:00:26]} Rf5+ {[%emt 0:00:07]} 109. Kh4 {[%emt 0:00:03]} Rxf6 {[%emt 0:00:05]} 110. Nxf6 {[%emt 0:02:38]} 1/2-1/2